[Event "57th Biel Festival ATO 2024"]
[Site "Biel"]
[Date "2024.07.17"]
[Round "2.17"]
[White "Boillat, Maxime"]
[Black "Schmid, Nicola"]
[Result "0-1"]
[ECO "B00"]
[WhiteElo "1768"]
[BlackElo "1888"]
[Annotator "NA RC"]
[PlyCount "68"]
[EventDate "2024.07.03"]
[EventType "swiss"]
[EventCountry "SUI"]
[SourceTitle "playchess.com"]
[Source "ChessBase"]
[SourceQuality "1"]
[TimeControl "40/5400+30:1800+30"]

1. e4 {[%emt 0:02:08]} e6 {[%emt 0:00:12]} 2. d4 {[%emt 0:00:06]} b6 {[%emt 0:01:02]} 3. Nf3 {[%emt 0:00:33]} Bb7 {[%emt 0:00:15]} 4. Nc3 {[%emt 0:00:08]} a6 {[%emt 0:00:31]} 5. Bd3 {[%emt 0:02:17]} c5 {[%emt 0:00:15]} 6. Be3 {[%emt 0:05:12]} Qc7 {[%emt 0:01:00]} 7. a4 {[%emt 0:11:08]} c4 {[%emt 0:06:29]} 8. Be2 {[%emt 0:00:08]} Bb4 {[%emt 0:00:30]} 9. Nd2 {[%emt 0:03:02]} Nf6 {[%emt 0:06:28]} 10. f3 {[%emt 0:06:55]} d5 {[%emt 0:01:28]} 11. e5 {[%emt 0:08:48]} Ng8 {[%emt 0:10:22]} 12. f4 {[%emt 0:03:02]} Ne7 {[%emt 0:00:11]} 13. g4 {[%emt 0:01:01]} Nbc6 {[%emt 0:04:23]} 14. O-O {[%emt 0:00:40]} h5 {[%emt 0:01:09]} 15. f5 {[%emt 0:01:23]} hxg4 {[%emt 0:08:12]} 16. fxe6 {[%emt 0:51:59]} f6 {[%emt 0:56:03]} 17. Bxg4 {[%emt 0:00:30]} O-O-O {[%emt 0:00:30]} 18. Ne2 {[%emt 0:00:30]} fxe5 {[%emt 0:00:30]} 19. dxe5 {[%emt 0:00:30]} Nxe5 {[%emt 0:00:30]} 20. Bf4 {[%emt 0:00:30]} Bc5+ {[%emt 0:00:30]} 21. Kh1 {[%emt 0:00:30]} Bd6 {[%emt 0:00:30]} 22. Nd4 {[%emt 0:00:30]} Rdf8 {[%emt 0:00:30]} 23. Bg3 {[%emt 0:00:30]} Rxf1+ {[%emt 0:00:30]} 24. Nxf1 {[%emt 0:00:30]} c3 {[%emt 0:00:30]} 25. b3 {[%emt 0:00:30]} Kb8 {[%emt 0:00:30]} 26. Qe2 {[%emt 0:00:30]} Rh6 {[%emt 0:00:30]} 27. Re1 {[%emt 0:00:30]} Nxg4 {[%emt 0:00:30]} 28. Qxg4 {[%emt 0:00:30]} Rg6 {[%emt 0:00:30]} 29. Qf3 {[%emt 0:00:30]} Rf6 {[%emt 0:00:30]} 30. Bxd6 {[%emt 0:00:30]} Qxd6 {[%emt 0:00:30]} 31. Qg3 {[%emt 0:00:30]} Qf4 {[%emt 0:00:30]} 32. Ne3 {[%emt 0:00:30]} Ka7 {[%emt 0:00:30]} 33. Ne2 {[%emt 0:00:30]} d4+ {[%emt 0:00:30]} 34. Ng2 {[%emt 0:00:30]} Qd2 {[%emt 0:00:30]} 0-1

[Event "57th Biel Festival ATO 2024"]
[Site "Biel"]
[Date "2024.07.17"]
[Round "2.18"]
[White "Wenger, Arejou"]
[Black "Rossi, Jonas"]
[Result "1-0"]
[ECO "C07"]
[WhiteElo "1875"]
[BlackElo "1796"]
[Annotator "NA RC"]
[PlyCount "43"]
[EventDate "2024.07.03"]
[EventType "swiss"]
[EventCountry "SUI"]
[SourceTitle "playchess.com"]
[Source "ChessBase"]
[SourceQuality "1"]
[TimeControl "40/5400+30:1800+30"]

1. e4 {[%emt 0:00:05]} e6 {[%emt 0:00:10]} 2. d4 {[%emt 0:00:06]} d5 {[%emt 0:00:06]} 3. Nd2 {[%emt 0:00:04]} c5 {[%emt 0:00:17]} 4. exd5 {[%emt 0:00:06]} Qxd5 {[%emt 0:00:19]} 5. Ngf3 {[%emt 0:00:17]} cxd4 {[%emt 0:00:25]} 6. Bc4 {[%emt 0:00:19]} Qd7 {[%emt 0:00:23]} 7. O-O {[%emt 0:01:16]} Nc6 {[%emt 0:01:02]} 8. Nb3 {[%emt 0:02:03]} Nf6 {[%emt 0:00:13]} 9. Re1 {[%emt 0:03:12]} a6 {[%emt 0:03:01]} 10. Nbxd4 {[%emt 0:04:11]} Nxd4 {[%emt 0:04:02]} 11. Nxd4 {[%emt 0:03:38]} b5 {[%emt 0:01:28]} 12. Bb3 {[%emt 0:03:12]} Bc5 {[%emt 0:10:08]} 13. Be3 {[%emt 0:06:23]} Bb7 {[%emt 0:19:36]} 14. Nxe6 {[%emt 0:10:24]} Bxe3 {[%emt 0:00:06]} 15. Nc5 {[%emt 0:04:53]} Qc6 {[%emt 0:10:23]} 16. Rxe3+ {[%emt 0:04:50]} Kf8 {[%emt 0:00:10]} 17. Nxb7 {[%emt 0:00:30]} Qxb7 {[%emt 0:00:08]} 18. Qd6+ {[%emt 0:01:15]} Kg8 {[%emt 0:01:01]} 19. Re7 {[%emt 0:01:05]} Ne4 {[%emt 0:02:28]} 20. Bxf7+ {[%emt 0:01:34]} Kf8 {[%emt 0:00:20]} 21. Re8+ {[%emt 0:00:18]} Kxf7 {[%emt 0:00:09]} 22. Qe6# {[%emt 0:00:05]} 1-0

[Event "57th Biel Festival ATO 2024"]
[Site "Biel"]
[Date "2024.07.17"]
[Round "2.19"]
[White "Linder, Ernst"]
[Black "Kessler, Meinrad"]
[Result "1/2-1/2"]
[ECO "E12"]
[WhiteElo "1765"]
[BlackElo "1874"]
[Annotator "NA RC"]
[PlyCount "61"]
[EventDate "2024.07.03"]
[EventType "swiss"]
[EventCountry "SUI"]
[SourceTitle "playchess.com"]
[Source "ChessBase"]
[SourceQuality "1"]
[TimeControl "40/5400+30:1800+30"]

1. d4 {[%emt 0:00:08]} Nf6 {[%emt 0:00:09]} 2. Nf3 {[%emt 0:00:21]} e6 {[%emt 0:00:45]} 3. c4 {[%emt 0:00:31]} b6 {[%emt 0:00:47]} 4. Nc3 {[%emt 0:00:22]} Bb4 {[%emt 0:00:36]} 5. Bg5 {[%emt 0:01:45]} Bb7 {[%emt 0:02:24]} 6. e3 {[%emt 0:00:28]} h6 {[%emt 0:02:06]} 7. Bxf6 {[%emt 0:02:17]} Qxf6 {[%emt 0:01:50]} 8. Be2 {[%emt 0:00:22]} O-O {[%emt 0:09:57]} 9. Rc1 {[%emt 0:00:39]} c5 {[%emt 0:06:17]} 10. O-O {[%emt 0:09:14]} Bxc3 {[%emt 0:00:31]} 11. Rxc3 {[%emt 0:00:30]} d6 {[%emt 0:13:04]} 12. Rd3 {[%emt 0:03:14]} cxd4 {[%emt 0:10:13]} 13. exd4 {[%emt 0:05:47]} Be4 {[%emt 0:03:00]} 14. Rd2 {[%emt 0:01:32]} Nd7 {[%emt 0:02:01]} 15. h3 {[%emt 0:02:57]} Rac8 {[%emt 0:03:45]} 16. b3 {[%emt 0:01:23]} Bxf3 {[%emt 0:02:21]} 17. Bxf3 {[%emt 0:00:51]} Qe7 {[%emt 0:00:39]} 18. Re1 {[%emt 0:04:52]} f5 {[%emt 0:03:59]} 19. Rxe6 {[%emt 0:01:07]} Qg5 {[%emt 0:05:55]} 20. Bd5 {[%emt 0:00:30]} Kh8 {[%emt 0:00:20]} 21. Rxd6 {[%emt 0:04:07]} Nf6 {[%emt 0:00:38]} 22. Bf3 {[%emt 0:01:10]} Rce8 {[%emt 0:05:45]} 23. Re2 {[%emt 0:07:27]} Ne4 {[%emt 0:04:05]} 24. Bxe4 {[%emt 0:00:50]} fxe4 {[%emt 0:00:11]} 25. Re3 {[%emt 0:01:42]} Rxf2 {[%emt 0:01:00]} 26. Kxf2 {[%emt 0:07:46]} Rf8+ {[%emt 0:04:50]} 27. Rf3 {[%emt 0:02:24]} exf3 {[%emt 0:03:46]} 28. g3 {[%emt 0:02:42]} Qf5 {[%emt 0:02:27]} 29. h4 {[%emt 0:02:48]} Qh3 {[%emt 0:00:28]} 30. Qg1 {[%emt 0:01:47]} Qf5 {[%emt 0:00:12]} 31. Qd1 {[%emt 0:01:03]} 1/2-1/2

[Event "57th Biel Festival ATO 2024"]
[Site "Biel"]
[Date "2024.07.17"]
[Round "2.20"]
[White "Lang, Jochen"]
[Black "Keymer, Cecilia"]
[Result "1/2-1/2"]
[ECO "D02"]
[WhiteElo "1755"]
[BlackElo "1865"]
[Annotator "NA RC"]
[PlyCount "39"]
[EventDate "2024.07.03"]
[EventType "swiss"]
[EventCountry "SUI"]
[SourceTitle "playchess.com"]
[Source "ChessBase"]
[SourceQuality "1"]
[TimeControl "40/5400+30:1800+30"]

1. d4 {[%emt 0:03:48]} d5 {[%emt 0:00:05]} 2. Bf4 {[%emt 0:00:50]} c5 {[%emt 0:02:02]} 3. e3 {[%emt 0:01:12]} Nc6 {[%emt 0:02:49]} 4. c3 {[%emt 0:01:20]} cxd4 {[%emt 0:03:34]} 5. exd4 {[%emt 0:00:28]} Nf6 {[%emt 0:03:26]} 6. Nd2 {[%emt 0:02:34]} e6 {[%emt 0:04:10]} 7. Ngf3 {[%emt 0:01:00]} Bd6 {[%emt 0:01:43]} 8. Bg3 {[%emt 0:00:36]} Bxg3 {[%emt 0:01:32]} 9. hxg3 {[%emt 0:00:19]} Qd6 {[%emt 0:04:36]} 10. Qe2 {[%emt 0:02:43]} b6 {[%emt 0:08:34]} 11. Ne5 {[%emt 0:01:52]} Bb7 {[%emt 0:03:20]} 12. f4 {[%emt 0:04:15]} a6 {[%emt 0:05:07]} 13. Qf3 {[%emt 0:02:18]} Qe7 {[%emt 0:02:26]} 14. Bd3 {[%emt 0:02:26]} h6 {[%emt 0:04:59]} 15. g4 {[%emt 0:07:25]} Nxe5 {[%emt 0:02:51]} 16. fxe5 {[%emt 0:00:47]} Nh7 {[%emt 0:01:37]} 17. Bxh7 {[%emt 0:04:02]} Rxh7 {[%emt 0:00:10]} 18. Qf4 {[%emt 0:03:04]} O-O-O {[%emt 0:05:08]} 19. O-O-O {[%emt 0:03:06]} Rf8 {[%emt 0:04:35]} 20. Nf3 {[%emt 0:03:52]} 1/2-1/2

[Event "57th Biel Festival ATO 2024"]
[Site "Biel"]
[Date "2024.07.17"]
[Round "2.21"]
[White "Bracher, Juerg"]
[Black "Svendsen, Hannelore"]
[Result "1/2-1/2"]
[ECO "A38"]
[WhiteElo "1864"]
[BlackElo "1753"]
[Annotator "NA"]
[PlyCount "71"]
[EventDate "2024.07.03"]
[EventType "swiss"]
[EventCountry "SUI"]
[SourceTitle "playchess.com"]
[Source "ChessBase"]
[SourceQuality "1"]
[TimeControl "40/5400+30:1800+30"]

1. c4 {[%emt 0:00:05]} c5 {[%emt 0:00:21]} 2. Nc3 {[%emt 0:00:41]} Nc6 {[%emt 0:01:06]} 3. Nf3 {[%emt 0:00:30]} Nf6 {[%emt 0:00:22]} 4. g3 {[%emt 0:00:29]} g6 {[%emt 0:00:26]} 5. Bg2 {[%emt 0:00:06]} Bg7 {[%emt 0:00:08]} 6. O-O {[%emt 0:00:47]} O-O {[%emt 0:00:20]} 7. d3 {[%emt 0:00:34]} d6 {[%emt 0:01:09]} 8. Bg5 {[%emt 0:00:40]} h6 {[%emt 0:03:25]} 9. Bd2 {[%emt 0:01:26]} a6 {[%emt 0:04:51]} 10. a3 {[%emt 0:06:14]} Bd7 {[%emt 0:02:46]} 11. Rb1 {[%emt 0:00:36]} Rb8 {[%emt 0:05:21]} 12. b4 {[%emt 0:01:30]} cxb4 {[%emt 0:05:53]} 13. axb4 {[%emt 0:00:16]} b5 {[%emt 0:06:55]} 14. Nd5 {[%emt 0:08:09]} Nxd5 {[%emt 0:05:28]} 15. cxd5 {[%emt 0:00:12]} Ne5 {[%emt 0:03:16]} 16. Nxe5 {[%emt 0:03:12]} dxe5 {[%emt 0:01:21]} 17. Be3 {[%emt 0:04:43]} Kh7 {[%emt 0:01:48]} 18. Qd2 {[%emt 0:01:49]} f5 {[%emt 0:13:59]} 19. f4 {[%emt 0:01:38]} exf4 {[%emt 0:03:06]} 20. gxf4 {[%emt 0:05:09]} Rc8 {[%emt 0:03:02]} 21. Rbc1 {[%emt 0:01:28]} Re8 {[%emt 0:02:43]} 22. Bc5 {[%emt 0:03:13]} e5 {[%emt 0:02:35]} 23. dxe6 {[%emt 0:20:20]} Bxe6 {[%emt 0:00:17]} 24. Bb7 {[%emt 0:04:10]} Rb8 {[%emt 0:02:27]} 25. Bc6 {[%emt 0:00:41]} Bd7 {[%emt 0:03:54]} 26. Bf3 {[%emt 0:04:36]} Be6 {[%emt 0:04:21]} 27. e3 {[%emt 0:06:11]} Bd5 {[%emt 0:02:59]} 28. Bxd5 {[%emt 0:05:42]} Qxd5 {[%emt 0:00:02]} 29. Ra1 {[%emt 0:01:35]} Bxa1 {[%emt 0:00:34]} 30. Rxa1 {[%emt 0:00:01]} Re6 {[%emt 0:04:08]} 31. Qc3 {[%emt 0:00:50]} Rd8 {[%emt 0:00:36]} 32. Rd1 {[%emt 0:02:07]} Qf3 {[%emt 0:01:15]} 33. Rd2 {[%emt 0:00:31]} Rc6 {[%emt 0:01:45]} 34. Qe5 {[%emt 0:00:46]} Qd5 {[%emt 0:04:26]} 35. Qe7+ {[%emt 0:02:07]} Kg8 {[%emt 0:01:29]} 36. Bd4 {[%emt 0:00:53]} 1/2-1/2

[Event "57th Biel Festival ATO 2024"]
[Site "Biel"]
[Date "2024.07.17"]
[Round "2.22"]
[White "Jordan, Christina"]
[Black "Gafner, Lancelot"]
[Result "1/2-1/2"]
[ECO "C96"]
[WhiteElo "1749"]
[BlackElo "1864"]
[Annotator "NA RC"]
[PlyCount "87"]
[EventDate "2024.07.03"]
[EventType "swiss"]
[EventCountry "SUI"]
[SourceTitle "playchess.com"]
[Source "ChessBase"]
[SourceQuality "1"]
[TimeControl "40/5400+30:1800+30"]

1. e4 {[%emt 0:00:07]} e5 {[%emt 0:01:30]} 2. Nf3 {[%emt 0:00:04]} Nc6 {[%emt 0:00:03]} 3. Bb5 {[%emt 0:00:09]} a6 {[%emt 0:00:08]} 4. Ba4 {[%emt 0:00:10]} Nf6 {[%emt 0:00:15]} 5. O-O {[%emt 0:00:07]} Be7 {[%emt 0:00:07]} 6. Re1 {[%emt 0:00:09]} b5 {[%emt 0:00:17]} 7. Bb3 {[%emt 0:00:07]} d6 {[%emt 0:00:28]} 8. c3 {[%emt 0:01:02]} O-O {[%emt 0:00:14]} 9. h3 {[%emt 0:01:28]} Na5 {[%emt 0:00:36]} 10. Bc2 {[%emt 0:00:17]} c5 {[%emt 0:00:30]} 11. d3 {[%emt 0:00:52]} Qc7 {[%emt 0:01:14]} 12. Nbd2 {[%emt 0:01:26]} Re8 {[%emt 0:01:00]} 13. a4 {[%emt 0:04:18]} Bd7 {[%emt 0:02:18]} 14. Nf1 {[%emt 0:05:10]} Bf8 {[%emt 0:01:29]} 15. Bg5 {[%emt 0:03:26]} Be7 {[%emt 0:10:54]} 16. Ne3 {[%emt 0:00:50]} Be6 {[%emt 0:02:44]} 17. d4 {[%emt 0:10:01]} exd4 {[%emt 0:06:13]} 18. cxd4 {[%emt 0:00:08]} Rad8 {[%emt 0:03:49]} 19. Qd3 {[%emt 0:08:07]} c4 {[%emt 0:09:35]} 20. Qc3 {[%emt 0:08:49]} Nb7 {[%emt 0:05:50]} 21. Bb1 {[%emt 0:11:33]} Nh5 {[%emt 0:11:19]} 22. Qc2 {[%emt 0:05:55]} Bxg5 {[%emt 0:04:21]} 23. Nxg5 {[%emt 0:00:11]} g6 {[%emt 0:02:41]} 24. Nxe6 {[%emt 0:05:13]} fxe6 {[%emt 0:02:01]} 25. Ng4 {[%emt 0:03:03]} e5 {[%emt 0:04:34]} 26. Qd2 {[%emt 0:04:51]} Qg7 {[%emt 0:04:46]} 27. axb5 {[%emt 0:06:16]} axb5 {[%emt 0:02:02]} 28. Qb4 {[%emt 0:01:42]} Qd7 {[%emt 0:03:28]} 29. Rd1 {[%emt 0:03:25]} Qc6 {[%emt 0:04:39]} 30. dxe5 {[%emt 0:00:39]} dxe5 {[%emt 0:00:35]} 31. Rxd8 {[%emt 0:00:14]} Nxd8 {[%emt 0:00:20]} 32. Ra7 {[%emt 0:00:40]} Nb7 {[%emt 0:01:16]} 33. Qc3 {[%emt 0:04:43]} Qb6 {[%emt 0:03:10]} 34. Ra1 {[%emt 0:01:17]} Qc5 {[%emt 0:01:45]} 35. Qf3 {[%emt 0:01:14]} Kg7 {[%emt 0:02:00]} 36. Bc2 {[%emt 0:03:04]} Rd8 {[%emt 0:04:22]} 37. Rd1 {[%emt 0:01:30]} Rxd1+ {[%emt 0:00:58]} 38. Qxd1 {[%emt 0:00:07]} Qd4 {[%emt 0:00:45]} 39. Qc1 {[%emt 0:01:17]} Nc5 {[%emt 0:03:07]} 40. Qg5 {[%emt 0:00:00]} Nd7 {[%emt 0:00:00]} 41. Qe7+ {[%emt 0:02:42]} Kh8 {[%emt 0:06:07]} 42. Qe8+ {[%emt 0:01:31]} Kg7 {[%emt 0:00:31]} 43. Qe7+ {[%emt 0:00:15]} Kh8 {[%emt 0:00:24]} 44. Qe8+ {[%emt 0:00:04]} 1/2-1/2

[Event "57th Biel Festival ATO 2024"]
[Site "Biel"]
[Date "2024.07.17"]
[Round "2.23"]
[White "Kuenzi, Anton"]
[Black "Klas, Friedrich Guenther"]
[Result "1-0"]
[ECO "A06"]
[WhiteElo "1862"]
[BlackElo "1750"]
[Annotator "NA RC"]
[PlyCount "70"]
[EventDate "2024.07.03"]
[EventType "swiss"]
[EventCountry "SUI"]
[SourceTitle "playchess.com"]
[Source "ChessBase"]
[SourceQuality "1"]
[TimeControl "40/5400+30:1800+30"]

1. Nf3 {[%emt 0:00:18]} c6 {[%emt 0:01:24]} 2. b3 {[%emt 0:10:22]} d5 {[%emt 0:00:48]} 3. Bb2 {[%emt 0:00:21]} Bf5 {[%emt 0:01:15]} 4. g3 {[%emt 0:00:25]} h6 {[%emt 0:02:38]} 5. Bg2 {[%emt 0:00:30]} Nd7 {[%emt 0:01:49]} 6. d3 {[%emt 0:03:39]} Ngf6 {[%emt 0:03:11]} 7. Nbd2 {[%emt 0:02:13]} Bh7 {[%emt 0:03:41]} 8. O-O {[%emt 0:04:14]} Qc7 {[%emt 0:09:59]} 9. c4 {[%emt 0:01:57]} e6 {[%emt 0:00:33]} 10. Qc2 {[%emt 0:03:00]} Be7 {[%emt 0:05:41]} 11. Bc3 {[%emt 0:05:50]} e5 {[%emt 0:13:28]} 12. Ne1 {[%emt 0:12:05]} O-O {[%emt 0:03:35]} 13. e4 {[%emt 0:06:40]} d4 {[%emt 0:04:01]} 14. Bb2 {[%emt 0:00:13]} c5 {[%emt 0:02:10]} 15. Bh3 {[%emt 0:02:10]} Ne8 {[%emt 0:01:00]} 16. Ng2 {[%emt 0:03:03]} f5 {[%emt 0:02:04]} 17. exf5 {[%emt 0:10:12]} Bxf5 {[%emt 0:00:05]} 18. Bxf5 {[%emt 0:00:08]} Rxf5 {[%emt 0:00:01]} 19. Ne4 {[%emt 0:04:29]} Nd6 {[%emt 0:01:41]} 20. Qe2 {[%emt 0:03:59]} Raf8 {[%emt 0:01:29]} 21. Rae1 {[%emt 0:01:18]} Rf3 {[%emt 0:00:31]} 22. Nf4 {[%emt 0:01:49]} R3xf4 {[%emt 0:01:45]} 23. gxf4 {[%emt 0:00:39]} exf4 {[%emt 0:01:45]} 24. Nxd6 {[%emt 0:02:09]} Bxd6 {[%emt 0:00:36]} 25. Qe6+ {[%emt 0:00:39]} Kh8 {[%emt 0:00:12]} 26. f3 {[%emt 0:00:20]} Ne5 {[%emt 0:01:32]} 27. Rd1 {[%emt 0:07:54]} Rf6 {[%emt 0:04:40]} 28. Qh3 {[%emt 0:00:34]} Qf7 {[%emt 0:03:29]} 29. Kh1 {[%emt 0:01:53]} Rf5 {[%emt 0:00:50]} 30. Rg1 {[%emt 0:01:50]} Rh5 {[%emt 0:01:29]} 31. Qg2 {[%emt 0:02:49]} Qd7 {[%emt 0:02:14]} 32. Bc1 {[%emt 0:03:53]} Rh3 {[%emt 0:01:04]} 33. Bxf4 {[%emt 0:01:18]} Nxf3 {[%emt 0:00:14]} 34. Bxd6 {[%emt 0:00:16]} Nxg1 {[%emt 0:00:09]} 35. Rxg1 {[%emt 0:00:25]} Re3 {[%emt 0:04:15]} 1-0

[Event "57th Biel Festival ATO 2024"]
[Site "Biel"]
[Date "2024.07.17"]
[Round "2.24"]
[White "Cho, Yeonhee"]
[Black "Jaggy, Enzo"]
[Result "1/2-1/2"]
[ECO "C01"]
[WhiteElo "1686"]
[BlackElo "1835"]
[Annotator "NA RC"]
[PlyCount "48"]
[EventDate "2024.07.03"]
[EventType "swiss"]
[EventCountry "SUI"]
[SourceTitle "playchess.com"]
[Source "ChessBase"]
[SourceQuality "1"]
[TimeControl "40/5400+30:1800+30"]

1. e4 {[%emt 0:00:03]} e6 {[%emt 0:00:04]} 2. d4 {[%emt 0:00:06]} d5 {[%emt 0:00:06]} 3. exd5 {[%emt 0:00:25]} exd5 {[%emt 0:00:10]} 4. Bd3 {[%emt 0:00:09]} Nf6 {[%emt 0:00:05]} 5. Bf4 {[%emt 0:01:11]} Bd6 {[%emt 0:00:42]} 6. Bxd6 {[%emt 0:00:18]} Qxd6 {[%emt 0:00:09]} 7. c3 {[%emt 0:03:51]} O-O {[%emt 0:01:22]} 8. h3 {[%emt 0:07:23]} Re8+ {[%emt 0:02:07]} 9. Ne2 {[%emt 0:00:18]} Ne4 {[%emt 0:00:07]} 10. O-O {[%emt 0:06:42]} Bf5 {[%emt 0:03:21]} 11. Qc2 {[%emt 0:05:23]} Nd7 {[%emt 0:03:33]} 12. Nd2 {[%emt 0:06:22]} Nxd2 {[%emt 0:01:04]} 13. Qxd2 {[%emt 0:00:07]} Bxd3 {[%emt 0:00:09]} 14. Qxd3 {[%emt 0:00:07]} Re7 {[%emt 0:01:22]} 15. Ng3 {[%emt 0:04:04]} g6 {[%emt 0:01:10]} 16. Rfe1 {[%emt 0:04:29]} Rae8 {[%emt 0:00:50]} 17. Rxe7 {[%emt 0:04:47]} Rxe7 {[%emt 0:03:12]} 18. Nf1 {[%emt 0:04:58]} c6 {[%emt 0:02:57]} 19. Nd2 {[%emt 0:00:25]} Nf6 {[%emt 0:02:57]} 20. Nf3 {[%emt 0:12:20]} Qf4 {[%emt 0:07:28]} 21. Rd1 {[%emt 0:06:08]} Ne4 {[%emt 0:04:29]} 22. Re1 {[%emt 0:02:52]} f5 {[%emt 0:00:51]} 23. Qe3 {[%emt 0:02:31]} Qxe3 {[%emt 0:00:41]} 24. Rxe3 {[%emt 0:00:08]} Kg7 {[%emt 0:00:41]} 1/2-1/2

[Event "57th Biel Festival ATO 2024"]
[Site "Biel"]
[Date "2024.07.17"]
[Round "2.29"]
[White "Bangerter, Daria"]
[Black "Kim, Yejun"]
[Result "1/2-1/2"]
[ECO "B52"]
[WhiteElo "1931"]
[BlackElo "1642"]
[Annotator "RC"]
[PlyCount "39"]
[EventDate "2024.07.03"]
[EventType "swiss"]
[EventCountry "SUI"]
[SourceTitle "playchess.com"]
[Source "ChessBase"]
[SourceQuality "1"]
[TimeControl "40/5400+30:1800+30"]

1. e4 {[%emt 0:00:10]} c5 {[%emt 0:00:37]} 2. Nf3 {[%emt 0:00:03]} d6 {[%emt 0:00:00]} 3. Bb5+ {[%emt 0:00:20]} Bd7 {[%emt 0:00:00]} 4. Bxd7+ {[%emt 0:00:11]} Qxd7 {[%emt 0:00:00]} 5. O-O {[%emt 0:00:12]} Nf6 {[%emt 0:00:00]} 6. Re1 {[%emt 0:00:38]} Nc6 {[%emt 0:00:05]} 7. c3 {[%emt 0:00:17]} e6 {[%emt 0:00:25]} 8. d4 {[%emt 0:00:48]} cxd4 {[%emt 0:00:19]} 9. cxd4 {[%emt 0:00:16]} d5 {[%emt 0:00:12]} 10. e5 {[%emt 0:00:50]} Ne4 {[%emt 0:00:14]} 11. Nbd2 {[%emt 0:01:03]} Nxd2 {[%emt 0:00:22]} 12. Bxd2 {[%emt 0:00:22]} Be7 {[%emt 0:00:29]} 13. Rc1 {[%emt 0:01:48]} O-O {[%emt 0:00:28]} 14. Rc3 {[%emt 0:02:46]} Rfc8 {[%emt 0:02:24]} 15. a3 {[%emt 0:12:04]} b5 {[%emt 0:07:32]} 16. Rd3 {[%emt 0:04:35]} b4 {[%emt 0:03:22]} 17. h4 {[%emt 0:23:59]} h5 {[%emt 0:20:51]} 18. g3 {[%emt 0:48:35]} Kh7 {[%emt 0:02:52]} 19. Kg2 {[%emt 0:00:02]} Kg6 {[%emt 0:00:00]} 20. g4 {[%emt 0:00:00]} 1/2-1/2

[Event "57th Biel Festival ATO 2024"]
[Site "Biel"]
[Date "2024.07.17"]
[Round "2.30"]
[White "Dreke, Frank"]
[Black "Lesniak, Julien"]
[Result "1-0"]
[ECO "C01"]
[WhiteElo "1915"]
[BlackElo "1728"]
[Annotator "ChessBase"]
[PlyCount "89"]
[EventDate "2024.07.03"]
[EventType "swiss"]
[EventCountry "SUI"]
[SourceTitle "playchess.com"]
[Source "ChessBase"]
[SourceQuality "1"]
[TimeControl "40/5400+30:1800+30"]

1. e4 {[%emt 0:08:00]} e6 {[%emt 0:00:21]} 2. d4 {[%emt 0:00:07]} d5 {[%emt 0:04:23]} 3. Bd3 {[%emt 0:00:02]} dxe4 {[%emt 0:00:30]} 4. Bxe4 {[%emt 0:00:26]} Nd7 {[%emt 0:00:34]} 5. Nf3 {[%emt 0:01:36]} Ngf6 {[%emt 0:02:55]} 6. Bd3 {[%emt 0:00:03]} Be7 {[%emt 0:02:49]} 7. O-O {[%emt 0:01:04]} O-O {[%emt 0:01:56]} 8. c4 {[%emt 0:11:50]} c5 {[%emt 0:05:36]} 9. Bc2 {[%emt 0:01:01]} cxd4 {[%emt 0:05:27]} 10. Qxd4 {[%emt 0:00:13]} Qb6 {[%emt 0:06:48]} 11. Qxb6 {[%emt 0:04:34]} Nxb6 {[%emt 0:00:33]} 12. b3 {[%emt 0:00:10]} Bd7 {[%emt 0:03:29]} 13. Ne5 {[%emt 0:00:28]} Rfd8 {[%emt 0:01:14]} 14. a4 {[%emt 0:05:35]} Be8 {[%emt 0:02:17]} 15. Nd2 {[%emt 0:10:38]} Bb4 {[%emt 0:05:01]} 16. Ndf3 {[%emt 0:00:30]} Bc3 {[%emt 0:02:42]} 17. Rb1 {[%emt 0:02:01]} Nbd7 {[%emt 0:02:00]} 18. Nxd7 {[%emt 0:00:46]} Rxd7 {[%emt 0:02:11]} 19. Be3 {[%emt 0:02:25]} Ng4 {[%emt 0:02:15]} 20. Bc5 {[%emt 0:05:07]} b6 {[%emt 0:01:33]} 21. Ba3 {[%emt 0:01:36]} Ne5 {[%emt 0:01:50]} 22. Nxe5 {[%emt 0:00:39]} Bxe5 {[%emt 0:00:34]} 23. Rfd1 {[%emt 0:00:45]} Rad8 {[%emt 0:00:16]} 24. Rxd7 {[%emt 0:03:59]} Rxd7 {[%emt 0:00:51]} 25. Rd1 {[%emt 0:00:10]} Bd4 {[%emt 0:14:50]} 26. Kf1 {[%emt 0:00:37]} a5 {[%emt 0:00:49]} 27. b4 {[%emt 0:05:56]} Bc3 {[%emt 0:04:59]} 28. bxa5 {[%emt 0:06:45]} Rxd1+ {[%emt 0:02:35]} 29. Bxd1 {[%emt 0:00:31]} Bxa5 {[%emt 0:00:32]} 30. Ke2 {[%emt 0:05:17]} Bc6 {[%emt 0:01:07]} 31. f3 {[%emt 0:00:15]} f6 {[%emt 0:03:55]} 32. Bd6 {[%emt 0:01:24]} Kf7 {[%emt 0:00:31]} 33. Bc7 {[%emt 0:00:38]} Ke7 {[%emt 0:04:44]} 34. c5 {[%emt 0:00:06]} Kd7 {[%emt 0:00:38]} 35. Bxb6 {[%emt 0:00:09]} Bb4 {[%emt 0:00:51]} 36. Bb3 {[%emt 0:01:53]} Bb7 {[%emt 0:03:40]} 37. Bc4 {[%emt 0:01:17]} Kc6 {[%emt 0:01:18]} 38. Bxe6 {[%emt 0:04:39]} Bxc5 {[%emt 0:00:35]} 39. Bxc5 {[%emt 0:00:09]} Kxc5 {[%emt 0:00:33]} 40. Ke3 {[%emt 0:00:00]} Bc6 {[%emt 0:00:00]} 41. Bb3 {[%emt 0:05:00]} Kb4 {[%emt 0:03:11]} 42. Bc2 {[%emt 0:00:23]} h6 {[%emt 0:00:12]} 43. Kd4 {[%emt 0:00:21]} Bb7 {[%emt 0:00:44]} 44. Be4 {[%emt 0:01:57]} Bc8 {[%emt 0:01:04]} 45. Bc6 {[%emt 0:00:10]} 1-0